lending/lending_fUSD_20251022
["ID","MTS","AMOUNT","RATE_DAILY","PERIOD"]
[392082145,1761138640101,-500.0,0.00046025,120]
[392082147,1761138640111,-500.0,0.00046025,120]
[392082149,1761138640120,-516.69,0.00046025,120]
[392082151,1761138640130,-500.0,0.00046025,120]
[392082153,1761138640140,-500.0,0.00046025,120]
[392082155,1761138640150,-500.0,0.00046025,120]
[392082157,1761138640159,-550.13,0.00046025,120]
[392082159,1761138640168,-500.0,0.00046025,120]
[392082161,1761138640178,-500.0,0.00046025,120]
[392082163,1761138640187,-500.0,0.00046025,120]
[392082165,1761138640197,-500.0,0.00046025,120]
[392082168,1761138640207,-500.0,0.00046025,120]
[392082170,1761138640216,-500.0,0.00046025,120]
[392082172,1761138640227,-500.0,0.00046025,120]
[392082174,1761138640236,-500.0,0.00046025,120]
[392082176,1761138640246,-500.0,0.00046025,120]
[392082178,1761138640255,-500.0,0.00046025,120]
[392082180,1761138640264,-500.0,0.00046025,120]
[392082182,1761138640274,-500.0,0.00046025,120]
[392082184,1761138640283,-500.0,0.00046025,120]
[392082186,1761138640292,-647.81,0.00046025,120]
[392082188,1761138640303,-500.0,0.00046025,120]
[392082191,1761138640312,-500.0,0.00046025,120]
[392082194,1761138640330,-634.385178,0.00046025,120]
[392082196,1761138640340,-500.0,0.00046025,120]
[392082198,1761138640349,-500.0,0.00046025,120]
[392082200,1761138640359,-500.0,0.00046025,120]
[392082202,1761138640370,-500.0,0.00046025,120]
[392082204,1761138640384,-500.0,0.00046025,120]
[392082206,1761138640394,-500.0,0.00046025,120]
[392082208,1761138640404,-500.0,0.00046025,120]
[392082210,1761138640415,-595.89114625,0.00046025,120]
[392082212,1761138640425,-500.0,0.00046025,120]
[392082214,1761138640434,-500.0,0.00046025,120]
[392082216,1761138640444,-1300.34,0.00046025,120]
[392082218,1761138640455,-500.0,0.00046025,120]
[392082220,1761138640466,-500.0,0.00046026,120]
[392082222,1761138640475,-226.04,0.00046026,120]
[392082224,1761138640485,-500.0,0.00046026,120]
[392082226,1761138640495,-335.83,0.00046026,120]
[392082228,1761138640505,-500.0,0.00046026,120]
[392082230,1761138640515,-500.0,0.00046026,120]
[392082233,1761138640524,-500.0,0.00046026,120]
[392082234,1761138640534,-500.0,0.00046026,60]
[392082237,1761138640544,-500.0,0.00046026,120]
[392082239,1761138640553,-500.0,0.00046026,120]
[392082241,1761138640563,-500.0,0.00046026,120]
[392082243,1761138640573,-500.0,0.00046026,120]
[392082245,1761138640583,-413.64,0.00046026,2]
[392082247,1761138640592,-500.0,0.00046026,120]
[392082249,1761138640605,-500.0,0.00046026,30]
[392082251,1761138640616,-500.0,0.00046026,120]
[392082254,1761138640626,-500.0,0.00046026,120]
[392082255,1761138640636,-500.0,0.00046026,120]
[392082258,1761138640646,-471.57,0.00046026,120]
[392082260,1761138640656,-500.0,0.00046026,120]
[392082262,1761138640666,-623.28,0.00046026,120]
[392082264,1761138640676,-512.76144455,0.00046026,120]
[392082266,1761138640686,-500.0,0.00046026,120]
[392082268,1761138640696,-500.0,0.00046026,120]
[392082270,1761138640707,-500.0,0.00046026,120]
[392082272,1761138640717,-500.0,0.00046026,120]
[392082274,1761138640727,-500.0,0.00046026,120]
[392082276,1761138640737,-500.0,0.00046026,120]
[392082278,1761138640748,-154.91,0.00046026,120]
[392082281,1761138640758,-500.0,0.00046026,120]
[392082283,1761138640768,-287.36,0.00046026,120]
[392082285,1761138640778,-500.0,0.00046026,120]
[392082287,1761138640788,-500.0,0.00046026,120]
[392082289,1761138640798,-500.0,0.00046026,120]
[392082291,1761138640807,-500.0,0.00046026,120]
[392082293,1761138640817,-500.0,0.00046026,120]
[392082295,1761138640827,-822.55,0.00046026,12]
[392082297,1761138640836,-500.0,0.00046026,120]
[392082299,1761138640846,-500.0,0.00046026,120]
[392082301,1761138640856,-530.1,0.00046026,120]
[392082303,1761138640866,-500.0,0.00046026,120]
[392082306,1761138640875,-500.0,0.00046026,120]
[392082308,1761138640885,-550.83,0.0004629,2]
[392082310,1761138640898,-355.0609048,0.00046298,120]
[392082312,1761138640907,-403.67,0.00046299,120]
[392082314,1761138640918,-150.24,0.00046299,120]
[392082316,1761138640928,-500.0,0.00046299,120]
[392082318,1761138640938,-403.57,0.00046299,120]
[392082320,1761138640948,-476.02,0.00046299,120]
[392082323,1761138640958,-500.0,0.00046299,120]
[392082325,1761138640971,-368.99,0.00046299,120]
[392082327,1761138640981,-500.0,0.00046299,120]
[392082329,1761138640991,-249.46,0.00046299,120]
[392082331,1761138641001,-291.42,0.00046299,120]
[392082333,1761138641011,-500.0,0.00046299,120]
[392082335,1761138641021,-500.0,0.00046299,120]
[392082337,1761138641032,-288.16,0.00046299,120]
[392082339,1761138641042,-514.48,0.00046299,120]
[392082342,1761138641052,-500.0,0.00046299,120]
[392082344,1761138641062,-500.0,0.00046299,120]
[392082346,1761138641071,-500.0,0.00046299,120]
[392082348,1761138641081,-521.54,0.00046299,120]
[392082350,1761138641095,-201.38,0.00046299,120]
[392082352,1761138641105,-500.0,0.00046299,120]
[392082354,1761138641116,-500.0,0.00046299,120]
[392082357,1761138641127,-500.0,0.00046299,120]
[392082359,1761138641137,-520.65,0.00046299,120]
[392082361,1761138641148,-466.41,0.00046299,120]
[392082363,1761138641158,-500.0,0.00046299,120]
[392082365,1761138641168,-500.0,0.00046299,120]
[392082367,1761138641179,-500.0,0.00046299,120]
[392082369,1761138641189,-1300.34,0.00046299,120]
[392082371,1761138641199,-184.88,0.00046299,120]
[392082373,1761138641211,-500.0,0.00046299,120]
[392082375,1761138641221,-500.0,0.000463,120]
[392082377,1761138641231,-598.97,0.000463,120]
[392082379,1761138641241,-500.0,0.000463,120]
[392082381,1761138641250,-500.0,0.000463,120]
[392082383,1761138641260,-500.0,0.000463,120]
[392082386,1761138641270,-596.43,0.000463,30]
[392082388,1761138641283,-500.0,0.000463,120]
[392082390,1761138641293,-550.93,0.000463,120]
[392082392,1761138641303,-500.0,0.000463,120]
[392082394,1761138641312,-539.29062905,0.000463,120]
[392082396,1761138641322,-500.0,0.000463,120]
[392082399,1761138641332,-500.0,0.000463,120]
[392082401,1761138641342,-500.0,0.000463,120]
[392082403,1761138641352,-500.0,0.000463,120]
[392082405,1761138641362,-1098.31,0.000463,120]
[392082407,1761138641375,-500.0,0.000463,120]
[392082409,1761138641386,-500.0,0.000463,120]
[392082411,1761138641396,-311.03454233,0.000463,120]
[392082413,1761138641406,-500.0,0.000463,120]
[392082415,1761138641419,-592.57148571,0.000463,120]
[392082418,1761138641429,-500.0,0.000463,120]
[392082420,1761138641440,-500.0,0.000463,60]
[392082422,1761138641450,-500.0,0.000463,120]
[392082424,1761138641464,-500.0,0.000463,120]
[392082427,1761138641478,-500.0,0.000463,120]
[392082429,1761138641488,-500.0,0.000463,120]
[392082431,1761138641500,-538.74291609,0.000463,120]
[392082450,1761138641738,-500.0,0.000463,120]
[392082452,1761138641748,-500.0,0.000463,120]
[392082454,1761138641758,-500.0,0.000463,120]
[392082456,1761138641767,-500.0,0.000463,120]
[392082458,1761138641776,-500.0,0.000463,120]
[392082460,1761138641786,-500.0,0.000463,120]
[392082462,1761138641796,-500.0,0.000463,120]
[392082464,1761138641805,-500.0,0.000463,120]
[392082466,1761138641813,-500.0,0.000463,120]
[392082468,1761138641822,-441.54075339,0.000463,120]
[392082470,1761138641831,-500.0,0.000463,120]
[392082472,1761138641841,-504.28,0.000463,120]
[392082474,1761138641850,-500.0,0.000463,120]
[392082476,1761138641860,-500.0,0.000463,30]
[392082478,1761138641869,-500.0,0.000463,120]
[392082480,1761138641878,-500.0,0.000463,120]
[392082482,1761138641887,-500.0,0.000463,120]
[392082484,1761138641896,-500.0,0.000463,120]
[392082486,1761138641906,-500.0,0.000463,120]
[392082488,1761138641915,-500.0,0.000463,120]
[392082490,1761138641925,-500.08,0.000463,120]
[392082492,1761138641935,-500.0,0.000463,120]
[392082494,1761138641944,-500.0,0.000463,120]
[392082496,1761138641953,-500.0,0.000463,120]
[392082498,1761138641963,-500.0,0.000463,120]
[392082500,1761138641972,-201.0,0.000463,120]
[392082502,1761138641981,-500.0,0.000463,120]
[392082505,1761138641999,-500.0,0.000463,120]
[392082507,1761138642010,-500.0,0.000463,120]
[392082508,1761138642020,-500.0,0.000463,120]
[392082510,1761138642029,-500.0,0.000463,120]
[392082511,1761138642039,-546.84,0.000463,120]
[392082512,1761138642048,-500.0,0.000463,120]
[392082513,1761138642058,-169.66,0.000463,120]
[392082514,1761138642068,-500.0,0.000463,120]
[392082515,1761138642078,-500.0,0.000463,120]
[392082516,1761138642087,-500.0,0.000463,120]
[392082517,1761138642097,-822.55,0.000463,12]
[392082518,1761138642107,-500.0,0.000463,120]
[392082519,1761138642116,-300.0,0.000463,120]
[392082520,1761138642126,-184.9135042,0.000463,120]
[392082521,1761138642137,-500.0,0.000463,120]
[392082522,1761138642146,-500.0,0.000463,120]
[392082523,1761138642156,-500.0,0.000463,120]
[392082525,1761138642166,-500.0,0.000463,120]
[392082527,1761138642176,-500.0,0.000463,120]
[392082529,1761138642187,-500.0,0.000463,120]
[392082531,1761138642197,-500.0,0.000463,120]
[392082532,1761138642207,-500.0,0.000463,120]
[392082533,1761138642217,-500.0,0.000463,120]
[392082534,1761138642227,-500.0,0.000463,120]
[392082535,1761138642237,-500.0,0.000463,120]
[392082536,1761138642246,-500.0,0.000463,120]
[392082537,1761138642256,-500.0,0.000463,120]
[392082538,1761138642265,-501.17212125,0.00046328,10]
[392082539,1761138642275,-529.59492403,0.00046328,3]
[392082540,1761138642285,-290.58260417,0.00046393,15]
[392082541,1761138642295,-387.0,0.00046564,2]
[392082542,1761138642304,-283.72,0.00046573,120]
[392082543,1761138642315,-514.46260514,0.00046573,120]
[392082544,1761138642326,-500.0,0.00046573,120]
[392082545,1761138642335,-500.0,0.00046573,120]
[392082546,1761138642345,-500.0,0.00046573,120]
[392082547,1761138642355,-548.92,0.00046573,120]
[392082548,1761138642369,-632.62,0.00046573,120]
[392082549,1761138642382,-515.76,0.00046573,120]
[392082550,1761138642392,-479.28,0.00046573,120]
[392082551,1761138642401,-500.0,0.00046573,120]
[392082552,1761138642411,-644.66,0.00046573,120]
[392082553,1761138642422,-500.0,0.00046573,120]
[392082554,1761138642432,-500.0,0.00046573,120]
[392082555,1761138642442,-1300.34,0.00046573,120]
[392082556,1761138642453,-257.65,0.00046573,120]
[392082557,1761138642466,-500.0,0.00046574,120]
[392082558,1761138642476,-500.0,0.00046574,120]
[392082559,1761138642486,-297.64,0.00046574,120]
[392082560,1761138642497,-339.78,0.00046574,120]
[392082561,1761138642507,-239.04,0.00046574,120]
[392082562,1761138642517,-500.0,0.00046574,120]
[392082563,1761138642527,-500.0,0.00046574,120]
[392082564,1761138642537,-500.0,0.00046574,120]
[392082565,1761138642546,-577.51,0.00046574,120]
[392082566,1761138642556,-500.0,0.00046574,120]
[392082567,1761138642566,-209.15,0.00046574,120]
[392082568,1761138642576,-500.0,0.00046574,120]
[392082569,1761138642586,-500.0,0.00046574,60]
[392082570,1761138642596,-500.0,0.00046574,120]
[392082571,1761138642606,-500.0,0.00046574,120]
[392082572,1761138642615,-440.37,0.00046574,120]
[392082573,1761138642625,-426.80299455,0.00046574,120]
[392082574,1761138642635,-500.0,0.00046574,120]
[392082575,1761138642644,-293.36,0.00046574,120]
[392082576,1761138642654,-500.0,0.00046574,120]
[392082577,1761138642663,-500.0,0.00046574,120]
[392082578,1761138642673,-228.44,0.00046574,120]
[392082579,1761138642683,-500.0,0.00046574,120]
[392082580,1761138642692,-500.0,0.00046574,120]
[392082581,1761138642702,-500.0,0.00046574,120]
[392082582,1761138642714,-500.0,0.00046574,120]
[392082583,1761138642724,-500.0,0.00046574,30]
[392082584,1761138642734,-500.0,0.00046574,120]
[392082585,1761138642743,-500.0,0.00046574,120]
[392082586,1761138642754,-631.8,0.00046574,120]
[392082587,1761138642769,-500.0,0.00046574,120]
[392082588,1761138642779,-514.33,0.00046574,120]
[392082589,1761138642788,-277.97,0.00046574,120]
[392082590,1761138642798,-291.81,0.00046574,120]
[392082591,1761138642807,-157.62,0.00046574,120]
[392082592,1761138642817,-500.0,0.00046574,120]
[392082593,1761138642827,-500.0,0.00046574,120]
[392082594,1761138642837,-500.0,0.00046574,120]
[392082595,1761138642846,-500.0,0.00046574,120]
[392082596,1761138642856,-500.0,0.00046574,120]
[392082597,1761138642866,-500.0,0.00046574,120]
[392082598,1761138642875,-500.0,0.00046574,120]
[392082599,1761138642884,-380.66,0.00046574,120]
[392082600,1761138642894,-500.0,0.00046574,120]
[392082601,1761138642903,-500.0,0.00046574,120]
[392082602,1761138642912,-822.55,0.00046574,12]
[392082603,1761138642922,-300.0,0.00046574,120]
[392082604,1761138642931,-500.0,0.00046574,120]
[392082605,1761138642943,-500.0,0.00046574,120]
[392082606,1761138642952,-500.0,0.00046574,120]
[392082607,1761138642963,-506.19,0.00046574,120]
[392082608,1761138642972,-268.78,0.00046574,120]
[392082609,1761138642982,-388.55,0.00046574,120]
[392082610,1761138642991,-268.92,0.00046574,120]
[392082611,1761138643001,-402.56,0.00046574,120]
[392082612,1761138643010,-288.81392094,0.00046574,120]
[392082613,1761138643020,-500.0,0.00046574,120]
[392082614,1761138643029,-500.0,0.00046574,120]
[392082615,1761138643038,-164.64,0.00046621,2]
[392082616,1761138643048,-4515.69996124,0.00046838,3]
[392082617,1761138643059,-204.96,0.00046847,120]
[392082618,1761138643069,-638.36,0.00046847,120]
[392082619,1761138643079,-500.0,0.00046847,120]
[392082620,1761138643088,-500.0,0.00046847,120]
[392082621,1761138643097,-176.32,0.00046847,120]
[392082622,1761138643107,-500.0,0.00046847,120]
[392082623,1761138643116,-1300.34,0.00046847,120]
[392082624,1761138643127,-255.83,0.00046848,120]
[392082626,1761138643137,-500.0,0.00046848,120]
[392082629,1761138643147,-500.0,0.00046848,120]
[392082631,1761138643156,-500.0,0.00046848,120]
[392082633,1761138643166,-229.70652291,0.00046848,120]
[392082635,1761138643175,-500.0,0.00046848,120]
[392082637,1761138643185,-500.0,0.00046848,120]
[392082639,1761138643195,-500.0,0.00046848,60]
[392082641,1761138643205,-500.0,0.00046848,120]
[392082643,1761138643215,-500.0,0.00046848,120]
[392082645,1761138643224,-171.07,0.00046848,120]
[392082647,1761138643234,-537.31,0.00046848,120]
[392082649,1761138643244,-500.0,0.00046848,120]
[392082651,1761138643253,-500.0,0.00046848,120]
[392082653,1761138643262,-500.0,0.00046848,120]
[392082655,1761138643272,-269.37609941,0.00046848,120]
[392082657,1761138643281,-500.0,0.00046848,120]
[392082659,1761138643291,-500.0,0.00046848,30]
[392082662,1761138643300,-391.53611629,0.00046848,120]
[392082665,1761138643310,-453.2,0.00046848,120]
[392082669,1761138643322,-212.18,0.00046848,120]
[392082672,1761138643332,-500.0,0.00046848,120]
[392082674,1761138643341,-500.0,0.00046848,120]
[392082676,1761138643351,-500.0,0.00046848,120]
[392082679,1761138643360,-500.0,0.00046848,120]
[392082681,1761138643373,-500.0,0.00046848,120]
[392082683,1761138643384,-500.0,0.00046848,120]
[392082684,1761138643393,-500.0,0.00046848,120]
[392082685,1761138643402,-500.0,0.00046848,120]
[392082686,1761138643412,-500.0,0.00046848,120]
[392082687,1761138643422,-822.55,0.00046848,12]
[392082688,1761138643431,-300.0,0.00046848,120]
[392082689,1761138643441,-500.0,0.00046848,120]
[392082690,1761138643452,-500.0,0.00046848,120]
[392082691,1761138643461,-500.0,0.00046848,120]
[392082692,1761138643471,-567.44,0.00046848,120]
[392082693,1761138643481,-200.44,0.00046848,120]
[392082694,1761138643490,-290.58260417,0.00047037,15]
[392082695,1761138643501,-4515.69996124,0.00047112,3]
[392082696,1761138643510,-500.0,0.00047121,120]
[392082697,1761138643520,-500.0,0.00047121,120]
[392082698,1761138643529,-344.54,0.00047121,120]
[392082699,1761138643539,-1300.34,0.00047121,120]
[392082700,1761138643548,-425.48272051,0.00047122,120]
[392082701,1761138643558,-500.0,0.00047122,120]
[392082702,1761138643568,-500.0,0.00047122,120]
[392082703,1761138643577,-500.0,0.00047122,120]
[392082704,1761138643587,-500.0,0.00047122,120]
[392082705,1761138643596,-500.0,0.00047122,60]
[392082706,1761138643606,-500.0,0.00047122,120]
[392082707,1761138643617,-500.0,0.00047122,120]
[392082708,1761138643628,-457.66,0.00047122,120]
[392082709,1761138643638,-500.0,0.00047122,120]
[392082710,1761138643648,-500.0,0.00047122,120]
[392082711,1761138643658,-187.68376393,0.00047122,120]
[392082712,1761138643667,-500.0,0.00047122,30]
[392082713,1761138643678,-500.0,0.00047122,120]
[392082714,1761138643687,-500.0,0.00047122,120]
[392082715,1761138643697,-500.0,0.00047122,120]
[392082716,1761138643708,-500.0,0.00047122,120]
[392082717,1761138643717,-500.0,0.00047122,120]
[392082718,1761138643727,-500.0,0.00047122,120]
[392082719,1761138643737,-500.0,0.00047122,120]
[392082720,1761138643746,-500.0,0.00047122,120]
[392082721,1761138643756,-500.0,0.00047122,120]
[392082722,1761138643765,-822.55,0.00047122,12]
[392082723,1761138643776,-300.0,0.00047122,120]
[392082724,1761138643785,-507.94002294,0.00047122,120]
[392082725,1761138643796,-283.82,0.00047122,120]
[392082726,1761138643807,-509.82,0.00047122,120]
[392082727,1761138643817,-187.34292404,0.00047296,15]
[392082728,1761138643826,-4515.69996124,0.00047386,3]
[392082729,1761138643836,-490.80647651,0.00047395,120]
[392082730,1761138643846,-500.0,0.00047395,120]
[392082731,1761138643855,-1300.34,0.00047395,120]
[392082732,1761138643864,-500.0,0.00047396,120]
[392082733,1761138643874,-500.0,0.00047396,120]
[392082734,1761138643884,-500.0,0.00047396,120]
[392082735,1761138643894,-500.0,0.00047396,120]
[392082736,1761138643903,-500.0,0.00047396,60]
[392082737,1761138643912,-500.0,0.00047396,120]
[392082738,1761138643921,-500.0,0.00047396,120]
[392082739,1761138643931,-500.0,0.00047396,120]
[392082740,1761138643942,-500.0,0.00047396,120]
[392082741,1761138643953,-500.0,0.00047396,30]
[392082742,1761138643964,-500.0,0.00047396,120]
[392082743,1761138643973,-500.0,0.00047396,120]
[392082744,1761138643982,-500.0,0.00047396,120]
[392082745,1761138643992,-500.0,0.00047396,120]
[392082746,1761138644002,-500.0,0.00047396,120]
[392082747,1761138644011,-500.0,0.00047396,120]
[392082748,1761138644021,-500.0,0.00047396,120]
[392082749,1761138644037,-500.0,0.00047396,120]
[392082750,1761138644049,-822.55,0.00047396,12]
[392082751,1761138644058,-300.0,0.00047396,120]
[392082752,1761138644067,-4515.69996124,0.0004766,3]
[392082753,1761138644077,-500.0,0.00047669,120]
[392082754,1761138644086,-1300.34,0.00047669,120]
[392082755,1761138644095,-500.0,0.0004767,120]
[392082756,1761138644105,-500.0,0.0004767,120]
[392082757,1761138644116,-500.0,0.0004767,120]
[392082758,1761138644126,-500.0,0.0004767,120]
[392082759,1761138644188,-500.0,0.0004767,60]
[392082760,1761138644197,-500.0,0.0004767,120]
[392082761,1761138644205,-500.0,0.0004767,120]
[392082762,1761138644215,-500.0,0.0004767,120]
[392082763,1761138644225,-564.67595551,0.0004767,120]
[392082764,1761138644234,-230.8938004,0.0004767,30]
[392082765,1761138644243,-500.0,0.0004767,120]
[392082766,1761138644253,-500.0,0.0004767,120]
[392082767,1761138644262,-319.45465787,0.0004767,120]
[392082768,1761138644272,-500.0,0.0004767,120]
[392082769,1761138644282,-500.0,0.0004767,120]
[392082770,1761138644291,-500.0,0.0004767,120]
[392082771,1761138644301,-500.0,0.0004767,120]
[392082772,1761138644311,-500.0,0.0004767,120]
[392082773,1761138644325,-822.55,0.0004767,12]
[392082774,1761138644336,-300.0,0.0004767,120]
[392082775,1761138644347,-290.58260417,0.00047681,15]
[392082776,1761138644356,-4515.69996124,0.00047934,4]
[392082777,1761138644365,-500.0,0.00047943,120]
[392082778,1761138644378,-1300.34,0.00047943,120]
[392082779,1761138644387,-500.0,0.00047944,120]
[392082780,1761138644397,-500.0,0.00047944,120]
[392082781,1761138644406,-539.13360924,0.00047944,120]
[392082782,1761138644415,-500.0,0.00047944,120]
[392082783,1761138644424,-217.65,0.00047944,60]
[392082784,1761138644434,-500.0,0.00047944,120]
[392082785,1761138644445,-500.0,0.00047944,120]
[392082786,1761138644454,-500.0,0.00047944,120]
[392082787,1761138644464,-500.0,0.00047944,120]
[392082788,1761138644473,-500.0,0.00047944,120]
[392082789,1761138644482,-500.0,0.00047944,120]
[392082790,1761138644491,-500.0,0.00047944,120]
[392082791,1761138644501,-500.0,0.00047944,120]
[392082792,1761138644511,-500.0,0.00047944,120]
[392082793,1761138644521,-500.0,0.00047944,120]
[392082794,1761138644531,-822.55,0.00047944,12]
[392082795,1761138644540,-160.0,0.00048,90]
[392082796,1761138644550,-658.4325596,0.00048,120]
[392082797,1761138644559,-160.0,0.00048,60]
[392082798,1761138644570,-253.20992428,0.00048,120]
[392082799,1761138644579,-524.08503745,0.00048,120]
[392082800,1761138644588,-1629.64082638,0.00048118,20]
[392082801,1761138644597,-4515.69996124,0.00048208,4]
[392082802,1761138644606,-500.0,0.00048217,120]
[392082803,1761138644615,-1300.34,0.00048217,120]
[392082804,1761138644625,-500.0,0.00048218,120]
[392082805,1761138644634,-500.0,0.00048218,120]
[392082806,1761138644643,-500.0,0.00048218,120]
[392082807,1761138644652,-170.09340448,0.00048218,120]
[392082808,1761138644660,-500.0,0.00048218,120]
[392082809,1761138644670,-500.0,0.00048218,120]
[392082810,1761138644679,-500.0,0.00048218,120]
[392082811,1761138644688,-500.0,0.00048218,120]
[392082812,1761138644697,-500.0,0.00048218,120]
[392082813,1761138644706,-500.0,0.00048218,120]
[392082814,1761138644715,-500.0,0.00048218,120]
[392082815,1761138644724,-500.0,0.00048218,120]
[392082816,1761138644733,-500.0,0.00048218,120]
[392082817,1761138644742,-822.55,0.00048218,12]
[392082818,1761138644752,-290.58260417,0.00048324,15]
[392082819,1761138644761,-5000.0,0.00048374,120]
[392082820,1761138644771,-164.64,0.00048469,2]
[392082821,1761138644780,-4515.69996124,0.00048482,4]
[392082822,1761138644790,-500.0,0.00048491,120]
[392082823,1761138644799,-1300.34,0.00048491,120]
[392082824,1761138644809,-500.0,0.00048492,120]
[392082825,1761138644819,-500.0,0.00048492,120]
[392082826,1761138644829,-500.0,0.00048492,120]
[392082827,1761138644839,-500.0,0.00048492,120]
[392082828,1761138644849,-500.0,0.00048492,120]
[392082829,1761138644859,-500.0,0.00048492,120]
[392082830,1761138644868,-500.0,0.00048492,120]
[392082831,1761138644877,-500.0,0.00048492,120]
[392082832,1761138644887,-500.0,0.00048492,120]
[392082833,1761138644897,-500.0,0.00048492,120]
[392082834,1761138644907,-607.2,0.00048492,120]
[392082835,1761138644917,-500.0,0.00048492,120]
[392082836,1761138644927,-822.55,0.00048492,12]
[392082837,1761138644936,-4412.4303716,0.00048493,4]
[392082838,1761138644955,-103.26958964,0.00048493,4]
[392082839,1761138644965,-1334.49396501,0.00048503,2]
[392082840,1761138645004,-436.58647097,0.00048503,2]
[392082841,1761138645015,-1996.57422173,0.00048503,2]
[392082842,1761138645026,-253.03252887,0.00048503,2]
[392082843,1761138645037,-540.4,0.00048503,2]
[392082844,1761138645120,-500.0,0.00045752,120]
[392082845,1761138645129,-227.22,0.00046026,120]
[392082846,1761138645139,-9394.53883629,0.00048503,2]
[392082847,1761138645149,-951.41549793,0.00048503,2]
[392082848,1761138645158,-4515.69996124,0.00048756,4]
[392082849,1761138645167,-500.0,0.00048765,120]
[392082850,1761138645176,-1300.34,0.00048765,120]
[392082851,1761138645185,-500.0,0.00048766,120]
[392082852,1761138645194,-500.0,0.00048766,120]
[392082853,1761138645206,-649.41213737,0.00048766,120]
[392082854,1761138645216,-500.0,0.00048766,120]
[392082855,1761138645225,-500.0,0.00048766,120]
[392082856,1761138645234,-500.0,0.00048766,120]
[392082857,1761138645245,-500.0,0.00048766,120]
[392082858,1761138645253,-500.0,0.00048766,120]
[392082859,1761138645263,-500.0,0.00048766,120]
[392082860,1761138645272,-500.0,0.00048766,120]
[392082861,1761138645283,-500.0,0.00048766,120]
[392082862,1761138645291,-822.55,0.00048766,12]
[392082863,1761138645300,-290.58260417,0.00048968,15]
[392082864,1761138645310,-500.0,0.00049039,120]
[392082865,1761138645320,-1300.34,0.00049039,120]
[392082866,1761138645331,-500.0,0.0004904,120]
[392082867,1761138645341,-500.0,0.0004904,120]
[392082868,1761138645350,-500.0,0.0004904,120]
[392082869,1761138645359,-500.0,0.0004904,120]
[392082870,1761138645370,-500.0,0.0004904,120]
[392082871,1761138645383,-500.0,0.0004904,120]
[392082872,1761138645393,-500.0,0.0004904,120]
[392082873,1761138645406,-500.0,0.0004904,120]
[392082874,1761138645417,-250.3690674,0.0004904,120]
[392082875,1761138645426,-500.0,0.0004904,120]
[392082876,1761138645436,-822.55,0.0004904,12]
[392082877,1761138645446,-4515.69996124,0.00049304,4]
[392082878,1761138645456,-500.0,0.00049313,120]
[392082879,1761138645465,-1300.34,0.00049313,120]